{"text_format":"1","workbook":"xlsx","n_sheets":12,"sheets":["Startseite","Wärmeanwendungen","Stromanwendungen","KWK","Kraftstoffanwendungen","Prozessanwendungen","Ergebnisse","Support","Erläuterungen KWK","Faktoren erneuerbare Energie","Faktoren Prozessemissionen","Faktoren Kraftstoffanwendung"],"not_rendered":{"charts":0,"images":1,"macros":1,"external_links":0,"defined_names":19,"comments":6,"pivot_tables":0},"unopened":[],"bounds":{"document_bytes":16777216,"sheet_cells":100000,"rows_first":2000,"rows_last":500,"rows_between":2000,"halvings":0,"cell_chars":16384,"cell_head_chars":4096},"cells_cut":0,"cells_raw":0,"read":"whole","date_system":"1900"}

{"sheet":"Startseite","index":0,"n_rows":31,"n_cols":6,"rows_kept":31,"cut":false,"hidden":false,"merged":[[28,5,28,10],[30,5,30,10],[16,2,25,10],[14,3,14,10]]}
[]
[]
[]
[]
[]
[]
[]
[]
[]
[]
[]
[]
[]
[]
[null,null,null,"Berechnungstool zur Treibhausgasminderung"]
[]
[null,null,"Das vorliegende Tool unterstützt Sie bei der Berechnung der Treibhausgasminderung\n\nAnhand der Daten, die in den verschiedenen Bereichen abgefragt werden, können Sie berechnen, wie hoch die Treibhausgaseinsparungen sind, die Sie mit Ihren Maßnahmen erzielen.\n\nDas Ergebnis kann Grundlage zum Vergleich sein, z.B. für Wettbewerbe.\n\n"]
[]
[]
[]
[]
[]
[]
[]
[]
[]
[]
[]
[null,null,null,"Name der Institution",null,"Bitte ausfüllen"]
[]
[null,null,null,"Titel des Projektes",null,"Bitte ausfüllen"]

{"sheet":"Wärmeanwendungen","index":1,"n_rows":96,"n_cols":12,"rows_kept":96,"cut":false,"hidden":false,"merged":[[38,4,38,5],[44,4,44,5],[78,4,78,5],[1,1,1,12],[5,5,5,7],[7,5,7,7],[3,2,3,3],[74,10,75,12]]}
[]
[null,"Berechnungstool Treibhausgasminderung"]
[]
[null,null,"Eingesparte Treibhausgasemissionen im Bereich",null,null,{"$f":"MID(CELL(\"Dateiname\",$B$1),FIND(\"]\", CELL(\"Dateiname\",$B$1))+1,31)","v":"Wärmeanwendungen"}]
[]
[null,null,"Name der Institution",null,null,{"$f":"Startseite!F29","v":"Bitte ausfüllen"}]
[]
[null,null,"Titel des Projektes",null,null,{"$f":"Startseite!F31","v":"Bitte ausfüllen"}]
[]
[]
[null,null,"Hinweise zur Bearbeitung der Tabellen"]
[]
[null,null,"In die weißen Felder bitte Werte eintragen",null,null,"In den hellblauen Feldern läuft eine Berechnung ab",null,null,"In den dunkelblauen Feldern werden Ihnen Ergebnisse angezeigt"]
[]
[]
[null,null,"Energieträger",null,"Emissionen CO2-Äquivalent",null,null,"Energieträger",null,"Heizwert / \nUmrechnungsfaktor"]
[]
[null,1,"Flüssiggas [l]",null,0.27600000000000002,"kg CO2-Äquivalent/kWh",1,"Flüssiggas [l]",null,6.6269999999999998,"kWh/l"]
[null,2,"Fernwärme [kWh]",null,0.254,"kg CO2-Äquivalent/kWh",2,"Fernwärme [kWh]",null,1,"[ ]"]
[null,3,"Kohle [kg]",null,0.45400000000000001,"kg CO2-Äquivalent/kWh",3,"Kohle [kg]",null,7.5,"kWh/kg"]
[null,4,"Heizöl [l]",null,0.318,"kg CO2-Äquivalent/kWh",4,"Heizöl [l]",null,10.029999999999999,"kWh/l"]
[null,5,"Erdgas [m3]",null,0.247,"kg CO2-Äquivalent/kWh",5,"Erdgas [m3]",null,9.77,"kWh/m3"]
[null,6,"Eigener Wert [ ]",null,0,"kg CO2-Äquivalent/kWh",6,"Eigener Wert [ ]",null,1,"kWh/n"]
[null,7,"Erneuerbare Energien [kWh]",null,0,"kg CO2-Äquivalent/kWh",7,"Erneuerbare Energien [kWh]",null,1,"[ ]"]
[null,8,null,null,null,null,8]
[null,9,"Strom-Mix [kWh]",null,0.42499999999999999,"kg CO2-Äquivalent/kWh",9,"Strom-Mix [kWh]",null,1,"[ ]"]
[null,null,null,null,null,"Quelle: \nGEMIS Version 5.0, Juli 2021"]
[null,null,"Gewählter Emissionsfaktor",null,{"$f":"VLOOKUP(C38,B18:E26,4,FALSE)","v":0.42499999999999999},"kg CO2-Äquivalent/kWh",null,"Gewählter Heizwert / Umrechnungsfaktor",null,{"$f":"VLOOKUP(C38,G18:J26,4,FALSE)","v":1},{"$f":"VLOOKUP(C38,G18:K26,5,FALSE)","v":"[ ]"}]
[]
[]
[null,null,"Maßnahmenbeschreibung"]
[null,null,"Bitte kurz die Maßnahme beschreiben und ggf. Quellen für Emissionsfaktoren benennen"]
[]
[]
[]
[null,"1. Baseline"]
[null,null,"Dropdown bitte klicken",null,null,"Baseline_\nVerbrauch [n/a]",null,"Baseline_Verbrauch [kWh/a]",null,"Baseline_Emissionen\n[t CO2-Äq/a]"]
[null,"Energieträger",9,null,null,0,null,{"$f":"F38*J28","v":0},null,{"$f":"H38*E28/1000","v":0}]
[null,null,null,null,"Hinweis: In Einheit aus der Energieträger-Liste eintragen, z.B. Wert für Erdgas in m3"]
[]
[]
[null,"2. Effizienzsteigerung"]
[null,null,null,null,null,"Verbrauch nach Optimierung [kWh]",null,"Verbrauch nach Optimierung [kWh/a]",null,"Emissionen Optimierung [t CO2-Äq/a]"]
[null,null,null,null,null,0,null,{"$f":"F44*J28","v":0},null,{"$f":"H44*E28/1000","v":0}]
[null,null,null,null,"Hinweis: Findet keine Effizienzsteigerung statt, muss der Baseline_Verbrauch eingetragen werden",null,null,null,null,"Einsparung Emissionen [t CO2-Äq/a]",null,"Einsparung Anteilig von Baseline [%]"]
[null,null,null,null,null,null,null,null,null,{"$f":"J38-J44","v":0},null,{"$f":"IF(J38>0,J46/J38,\"Baseline fehlt\")","v":"Baseline fehlt"}]
[]
[]
[null,"3. Systemwechsel erneuerbare Energien"]
[null,null,null,null,null,"Anteil EE in %",null,"Einsparung [kWh/a]",null,"Einsparung Emissionen \n[t CO2-Äq/a]",null,"Einsparung Anteilig von Baseline [%]"]
[null,"Anteil erneuerbare Energien",null,null,null,0,null,{"$f":"H38*F51","v":0},null,{"$f":"H51*E28/1000","v":0},null,{"$f":"IF(J38>0,J51/J38,\"Baseline fehlt\")","v":"Baseline fehlt"}]
[]
[]
[]
[]
[]
[null,"4. Elektrische Wärmepumpe",null,null,null,"Anteil  E-WP in %",null,"Einsparung [kWh/a]",null,"Einsparung Emissionen \n[t CO2-Äq/a]"]
[null,null,null,null,null,0,null,{"$f":"H38*F58","v":0},null,{"$f":"H58*E28/1000","v":0}]
[null,null,null,null,null,null,null,"Strom WP_Verbrauch [kWh/a]",null,"WP_Emissionen\n[t CO2-Äq/a]"]
[null,null,null,null,null,null,null,0,null,{"$f":"H60*E26/1000","v":0}]
[null,null,null,null,null,null,null,null,null,"Einsparung Emissionen \n[t CO2-Äq/a]",null,"Einsparung Anteilig von Baseline [%]"]
[null,null,null,null,null,null,null,null,null,{"$f":"J58-J60","v":0},null,{"$f":"IF(J38>0,J62/J38,\"Baseline fehlt\")","v":"Baseline fehlt"}]
[]
[]
[null,"5. Gasbetriebene Wärmepumpe"]
[null,null,null,null,null,"Anteil G-WP in %",null,"Einsparung [kWh/a]",null,"Einsparung Emissionen \n[t CO2-Äq/a]"]
[null,null,null,null,null,0,null,{"$f":"F67*H38","v":0},null,{"$f":"H67*E28/1000","v":0}]
[null,null,null,null,null,null,null,"Gas WP_Verbrauch \n[kWh/a]",null,"WP_Emission \n[t CO2-Äq/a]"]
[null,null,null,null,null,null,null,0,null,{"$f":"H69*E22/1000","v":0}]
[null,null,null,null,null,null,null,null,null,"Einsparung Emissionen \n[t CO2-Äq/a]",null,"Einsparung Anteilig von Baseline [%]"]
[null,null,null,null,null,null,null,null,null,{"$f":"J67-J69","v":0},null,{"$f":"IF(J38>0,J71/J38,\"Baseline fehlt\")","v":"Baseline fehlt"}]
[]
[]
[]
[null,"6. Brennstoffwechsel",null,null,null,null,null,null,null,"Baseline_Emissionen \n[t CO2-Äq/a] (nur bei Brennstoffwechsel)"]
[null,null,null,"ja",null,null,null,null,null,{"$f":"IF(C77=1,J38,0)","v":0}]
[null,"Ist ein Brennstoffwechsel vorgesehen?",2,"nein",null,"Verbrauch nach Brennstoffwechsel [n/a]",null,"Verbrauch nach Brennstoffwechsel [kWh/a]",null,"Emissionen nach Brennstoffwechsel \n[t CO2-Äq/a]"]
[null,null,null,null,null,0,null,{"$f":"F78*J96","v":0},null,{"$f":"H78*E96/1000","v":0}]
[null,null,"Dropdown bitte klicken",null,"Hinweis: In Einheit aus der Energieträger-Liste eintragen, z.B. Wert für Erdgas in m3",null,null,null,null,"Einsparungen Emissionen\n[t CO2-Äq/a]",null,"Einsparung Anteilig von Baseline [%]"]
[null,"Wechsel zu:",9,null,null,null,null,null,null,{"$f":"J76-J78","v":0},null,{"$f":"IF(J38>0,J80/J38,\"Baseline fehlt\")","v":"Baseline fehlt"}]
[]
[]
[]
[null,null,"Energieträger",null,"Emissionen CO2-Äquivalent",null,null,"Energieträger",null,"Heizwert / \nUmrechnungsfaktor"]
[]
[null,1,"Flüssiggas [l]",null,{"$f":"E18","v":0.27600000000000002},"kg CO2-Äquivalent/kWh",1,"Flüssiggas [l]",null,{"$f":"J18","v":6.6269999999999998},"kWh/l"]
[null,2,"Fernwärme [kWh]",null,{"$f":"E19","v":0.254},"kg CO2-Äquivalent/kWh",2,"Fernwärme [kWh]",null,{"$f":"J19","v":1},"[ ]"]
[null,3,"Kohle [kg]",null,0.45400000000000001,"kg CO2-Äquivalent/kWh",3,"Kohle [kg]",null,7.5,"kWh/kg"]
[null,4,"Heizöl [l]",null,0.318,"kg CO2-Äquivalent/kWh",4,"Heizöl [l]",null,10.029999999999999,"kWh/l"]
[null,5,"Erdgas [m3]",null,0.247,"kg CO2-Äquivalent/kWh",5,"Erdgas [m3]",null,9.77,"kWh/m3"]
[null,6,"Eigener Wert [ ]",null,null,"kg CO2-Äquivalent/kWh",6,"Eigener Wert [ ]",null,null,"kWh/n"]
[null,7,"Erneuerbare Energien [kWh]",null,0,"kg CO2-Äquivalent/kWh",7,"Erneuerbare Energien [kWh]",null,1,"[ ]"]
[null,8,null,null,null,null,8]
[null,9,"Strom-Mix [kWh]",null,0.42499999999999999,"kg CO2-Äquivalent/kWh",9,"Strom-Mix [kWh]",null,1,"[ ]"]
[null,null,null,null,null,"Quelle: \nGEMIS Version 5.0, Juli 2021"]
[null,null,"Gewählter Emissionsfaktor für Brennstoffwechsel",null,{"$f":"VLOOKUP(C80,B86:E94,4,FALSE)","v":0.42499999999999999},"kg CO2-Äquivalent/kWh",null,"Gewählter Heizwert / Umrechnungsfaktor für Brennstoffwechsel",null,{"$f":"VLOOKUP(C80,G86:J94,4,FALSE)","v":1},{"$f":"VLOOKUP(C80,G86:K94,5,FALSE)","v":"[ ]"}]

{"sheet":"Stromanwendungen","index":2,"n_rows":65,"n_cols":12,"rows_kept":65,"cut":false,"hidden":false,"merged":[[69,4,69,5],[53,6,53,7],[51,1,52,4],[1,1,1,12],[5,5,5,7],[7,5,7,7],[34,4,34,5],[66,10,66,12],[3,2,3,3],[38,4,39,5]]}
[]
[null,"Berechnungstool Treibhausgasminderung"]
[]
[null,null,"Eingesparte Treibhausgasemissionen im Bereich",null,null,{"$f":"MID(CELL(\"Dateiname\",$B$1),FIND(\"]\", CELL(\"Dateiname\",$B$1))+1,31)","v":"Stromanwendungen"}]
[]
[null,null,"Name der Institution",null,null,{"$f":"Startseite!F29","v":"Bitte ausfüllen"}]
[]
[null,null,"Titel des Projektes",null,null,{"$f":"Startseite!F31","v":"Bitte ausfüllen"}]
[]
[]
[null,null,"Hinweise zur Bearbeitung der Tabellen"]
[]
[null,null,"In die weißen Felder bitte Werte eintragen",null,null,"In den hellblauen Feldern läuft eine Berechnung ab",null,null,"In den dunkelblauen Feldern werden Ihnen Ergebnisse angezeigt"]
[]
[]
[null,null,"Energieträger",null,"Emissionen CO2-Äquivalent"]
[]
[null,1,"Eigener Wert [ ]",null,0,"kg CO2-Äquivalent/kWh"]
[null,2,"Erneuerbare Energien [kWh]",null,0,"kg CO2-Äquivalent/kWh"]
[null,3]
[null,4,"Strom-Mix [kWh]",null,{"$f":"Wärmeanwendungen!E26","v":0.42499999999999999},"kg CO2-Äquivalent/kWh"]
[null,null,null,null,null,"Quelle: \nGEMIS Version 5.0, Juli 2021"]
[null,null,"Gewählter Emissionsfaktor",null,{"$f":"VLOOKUP(C34,B18:E21,4,)","v":0},"kg CO2-Äquivalent/kWh"]
[]
[]
[null,null,"Maßnahmenbeschreibung"]
[null,null,"Bitte kurz die Maßnahme beschreiben und ggf. Quellen für Emissionsfaktoren benennen"]
[]
[]
[]
[]
[null,"1. Baseline"]
[null,null,"Dropdown bitte klicken",null,null,null,null,"Baseline_Verbrauch [kWh/a]",null,"Baseline_Emissionen\n[t CO2-Äq/a]"]
[null,"Energieträger",1,null,null,null,null,0,null,{"$f":"H34*E23/1000","v":0}]
[]
[]
[]
[null,"2. Effizienzsteigerung",null,null,null,null,null,"Verbrauch nach Optimierung [kWh/a]",null,"Emissionen Optimierung [t CO2-Äq/a]"]
[null,null,null,null,"Hinweis: Findet keine Effizienzsteigerung statt, muss der Baseline_Verbrauch eingetragen werden.",null,null,0,null,{"$f":"H39*E23/1000","v":0}]
[null,"z.B. Beleuchtung",null,null,null,null,null,null,null,"Einsparung Emissionen \n[t CO2-Äq/a]",null,"Einsparung Anteilig von Baseline [%]"]
[null,null,null,null,null,null,null,null,null,{"$f":"J34-J39","v":0},null,{"$f":"IF(J34>0,J41/J34,\"Baseline fehlt\")","v":"Baseline fehlt"}]
[]
[]
[null,"3. Erneuerbare Energien"]
[null,null,null,null,null,"Anteil %",null,"Einsparung [kWh/a]",null,"Einsparung Emissionen \n[t CO2-Äq/a]",null,"Einsparung Anteilig von Baseline [%]"]
[null,"    3.1 EE-Verbrauch",null,null,null,0,null,{"$f":"H34*F46","v":0},null,{"$f":"H46*E21/1000","v":0},null,{"$f":"IF(J34>0,J46/J34,\"Baseline fehlt\")","v":"Baseline fehlt"}]
[]
[null,null,null,null,null,"Produktion [kWh/a]",null,null,null,"Einsparung Emissionen \n[t CO2-Äq/a]"]
[null,"    3.2 EE-Produktion",null,null,null,0,null,null,null,{"$f":"F49*E21/1000","v":0}]
[]
[]
[null,"Wann gilt \"Verbrauch an erneuerbarer Energie\" und wann \"Produktion EE\"?\n\nWenn kein Verbrauch stattfindet, also die erneuerbare Energie nur in das Netz eingespeist wird, muss dies unter EE-Produktion (3.2) angegeben werden. Wenn sowohl selbst erneuerbare Energie produziert als auch verbraucht wird, wird dies nur unter EE-Verbrauch angegeben.",null,null,null,null,null,"Faktor für EE \n[kg CO2-eq/kWh]",null,"Emissionen EE \n[t CO2-Äq/a]"]
[null,null,null,null,null,null,4,{"$f":"VLOOKUP(G53,'Faktoren erneuerbare Energie'!A4:C15,3,FALSE)","v":0.04},null,{"$f":"F49*H53/1000","v":0}]
[null,null,null,null,null,null,"Dropdown, bitte wählen",null,null,"Netto Einsparungen \n[t CO2-Äq/a]",null,"Einsparung Anteilig von Baseline [%]"]
[null,null,null,null,null,null,null,null,null,{"$f":"J49-J53","v":0},null,{"$f":"IF(J34>0,J55/J34,\"Baseline fehlt\")","v":"Baseline fehlt"}]
[]
[]
[]
[null,"4. Stromheizung"]
[null,null,null,null,null,"Anteil %",null,"Verbrauch [kWh/a]",null,"Emissionen [t CO2-Äq/a]"]
[null,"(z.B. Nachtspeicher)",null,null,null,0,null,{"$f":"H34*F61","v":0},null,{"$f":"H61*E23/1000","v":0}]
[null,null,null,null,null,"Faktor für neues System \n[kg CO2-eq/kWh]",null,"neues System \n[kWh/a]",null,"Emissionen Optimierung [t CO2-Äq/a]"]
[null,null,null,null,null,0,null,0,null,{"$f":"H63*F63/1000","v":0}]
[null,null,null,null,null,null,null,null,null,"Einsparung Emissionen \n[t CO2-Äq/a]",null,"Einsparung Anteilig von Baseline [%]"]
[null,null,null,null,null,null,null,null,null,{"$f":"J61-J63","v":0},null,{"$f":"IF(J34>0,J65/J34,\"Baseline fehlt\")","v":"Baseline fehlt"}]

{"sheet":"KWK","index":3,"n_rows":54,"n_cols":11,"rows_kept":54,"cut":false,"hidden":false,"merged":[[1,1,1,12],[5,5,5,7],[7,5,7,7],[76,10,76,12],[79,4,79,5],[16,2,16,4],[16,7,16,9],[24,2,24,4],[3,2,3,3]]}
[]
[null,"Berechnungstool Treibhausgasminderung"]
[]
[null,null,"Eingesparte Treibhausgasemissionen im Bereich",null,null,{"$f":"MID(CELL(\"Dateiname\",$B$1),FIND(\"]\", CELL(\"Dateiname\",$B$1))+1,31)","v":"KWK"}]
[]
[null,null,"Name der Institution",null,null,{"$f":"Startseite!F29","v":"Bitte ausfüllen"}]
[]
[null,null,"Titel des Projektes",null,null,{"$f":"Startseite!F31","v":"Bitte ausfüllen"}]
[]
[]
[null,null,"Hinweise zur Bearbeitung der Tabellen"]
[]
[null,null,"In die weißen Felder bitte Werte eintragen",null,null,"In den hellblauen Feldern läuft eine Berechnung ab",null,null,"In den dunkelblauen Feldern werden Ihnen Ergebnisse angezeigt"]
[]
[]
[]
[null,null,"Emissionsfaktor für ungekoppelte Stromerzeugung durch KWK",null,null,null,null,"Emissionsfaktor für Brennstoffeinsatz in KWK"]
[null,null,"Energieträger",null,"Emissionen CO2-Äquivalent",null,null,"Energieträger",null,"Emissionen CO2-Äquivalent"]
[null,1,"Strom-Mix [kWh]",null,{"$f":"Wärmeanwendungen!E26","v":0.42499999999999999},"kg CO2-Äquivalent/kWh",1,"Erdgas [m3]",null,{"$f":"E31","v":0.247},"kg CO2-Äquivalent/kWh"]
[null,2,"Eigener Wert [ ]",null,0,"kg CO2-Äquivalent/kWh",2,"Eigener Wert [ ]",null,0]
[]
[null,null,"Gewählter Emissionsfaktor",null,{"$f":"VLOOKUP(E46,B19:E20,4,FALSE)","v":0.42499999999999999},"kg CO2-Äquivalent/kWh",null,"Gewählter Emissionsfaktor",null,{"$f":"VLOOKUP(E52,G19:J20,4,FALSE)","v":0.247}]
[]
[]
[null,null,"Emissionsfaktor für ungekoppelte Wärmeerzeugung"]
[]
[null,null,"Energieträger",null,"Emissionen CO2-Äquivalent"]
[null,1,"Fernwärme [kWh]",null,{"$f":"Wärmeanwendungen!E19","v":0.254},"kg CO2-Äquivalent/kWh"]
[null,2,"Kohle [kg]",null,{"$f":"Wärmeanwendungen!E20","v":0.45400000000000001},"kg CO2-Äquivalent/kWh"]
[null,3,"Heizöl [l]",null,{"$f":"Wärmeanwendungen!E21","v":0.318},"kg CO2-Äquivalent/kWh"]
[null,4,"Erdgas [m3]",null,{"$f":"Wärmeanwendungen!E22","v":0.247},"kg CO2-Äquivalent/kWh"]
[null,5,"Eigener Wert [ ]",null,0,"kg CO2-Äquivalent/kWh"]
[null,6,"Erneuerbare Energien [kWh]",null,{"$f":"Wärmeanwendungen!E24","v":0},"kg CO2-Äquivalent/kWh"]
[]
[null,null,null,null,null,"Quelle: \nGEMIS Version 5.0, Juli 2021"]
[null,null,"Gewählter Emissionsfaktor",null,{"$f":"VLOOKUP(E49,B28:E33,4,FALSE)","v":0.318},"kg CO2-Äquivalent/kWh"]
[]
[]
[null,null,"Maßnahmenbeschreibung"]
[null,null,"Bitte kurz die Maßnahme beschreiben und ggf. Quellen für Emissionsfaktoren benennen"]
[]
[]
[]
[null,"1. KWK"]
[null,null,"Stromerzeugung durch KWK [kWh]",null,"Emissionsfaktor für ungekoppelte Stromerzeugung"]
[null,null,0,null,1,"Dropdown bitte klicken"]
[]
[null,null,"Wärmeerzeugung KWK [kWh]",null,"Emissionsfaktor für ungekoppelte Wärmeerzeugung",null,"Emissionen der ungekoppelten Erzeugung \n[t CO2-Äq/a]"]
[null,null,0,null,3,"Dropdown bitte klicken",{"$f":"(C46*E22/1000)+(C49*E36/1000)","v":0}]
[]
[null,null,"Brennstoffeinsatz für KWK [kWh]",null,"Emissionsfaktor für Brennstoffeinsatz",null,"Emissionen durch KWK-Anlagen [t CO2-Äq/a]"]
[null,null,0,null,1,"Dropdown bitte klicken",{"$f":"C52*J22/1000","v":0}]
[null,null,null,null,null,null,"Einsparung durch KWK \n[t CO2-Äq/a]",null,"Einsparung durch KWK in %"]
[null,null,null,null,null,null,{"$f":"G49-G52","v":0},null,{"$f":"IF(G49>0,G54/G49,\"unkekoppelte Erzeugung fehlt\")","v":"unkekoppelte Erzeugung fehlt"}]

{"sheet":"Kraftstoffanwendungen","index":4,"n_rows":71,"n_cols":12,"rows_kept":71,"cut":false,"hidden":false,"merged":[[77,4,77,5],[30,2,30,10],[31,2,32,10],[1,1,1,12],[5,5,5,7],[7,5,7,7],[39,4,39,5],[45,4,45,5],[74,10,74,12],[3,2,3,3]]}
[]
[null,"Berechnungstool Treibhausgasminderung"]
[]
[null,null,"Eingesparte Treibhausgasemissionen im Bereich",null,null,{"$f":"MID(CELL(\"Dateiname\",$B$1),FIND(\"]\", CELL(\"Dateiname\",$B$1))+1,31)","v":"Kraftstoffanwendungen"}]
[]
[null,null,"Name der Institution",null,null,{"$f":"Startseite!F29","v":"Bitte ausfüllen"}]
[]
[null,null,"Titel des Projektes",null,null,{"$f":"Startseite!F31","v":"Bitte ausfüllen"}]
[]
[]
[null,null,"Hinweise zur Bearbeitung der Tabellen"]
[]
[null,null,"In die weißen Felder bitte Werte eintragen",null,null,"In den hellblauen Feldern läuft eine Berechnung ab",null,null,"In den dunkelblauen Feldern werden Ihnen Ergebnisse angezeigt"]
[]
[]
[null,null,"Energieträger",null,"Emissionen CO2-Äquivalent",null,null,"Energieträger",null,"Heizwert / \nUmrechnungsfaktor"]
[]
[null,1,"Diesel [l]",null,0.26600000000000001,"kg CO2-Äquivalent/kWh",1,"Diesel [l]",null,9.8000000000000007,"kWh/l"]
[null,2,"Benzin [l]",null,0.25900000000000001,"kg CO2-Äquivalent/kWh",2,"Benzin [l]",null,8.9,"kWh/l"]
[null,3,"Erdgas CNG [kg]",null,0.20200000000000001,"kg CO2-Äquivalent/kWh",3,"Erdgas CNG [kg]",null,12,"kWh/kg"]
[null,4,"Autogas LPG [l]",null,0.23400000000000001,"kg CO2-Äquivalent/kWh",4,"Autogas LPG [l]",null,12.8,"kWh/l"]
[null,5,"Strom [kWh]",null,{"$f":"Wärmeanwendungen!E26","v":0.42499999999999999},"kg CO2-Äquivalent/kWh",5,"Strom [kWh]",null,1,"kWh"]
[null,6,"Biodiesel [l]",null,0.255,"kg CO2-Äquivalent/kWh",6,"Biodiesel [l]",null,9.8000000000000007,"kWh/l"]
[null,7,"Wasserstoff",null,null,"kg CO2-Äquivalent/kWh",7,"Wasserstoff",null,null,"kWh/n"]
[null,8,"Eigener Wert [ ]",null,null,"kg CO2-Äquivalent/kWh",8,"Eigener Wert [ ]",null,null,"kWh/n"]
[]
[]
[null,null,"Gewählter Emissionsfaktor",null,{"$f":"VLOOKUP(C39,B18:E25,4,FALSE)","v":0.42499999999999999},"kg CO2-Äquivalent/kWh",null,"Gewählter Heizwert / Umrechnungsfaktor",null,{"$f":"VLOOKUP(C39,G18:J25,4,FALSE)","v":1},{"$f":"VLOOKUP(C39,G18:K25,5,FALSE)","v":"kWh"}]
[]
[]
[null,null,"Maßnahmenbeschreibung"]
[null,null,"Bitte kurz die Maßnahme beschreiben und ggf. Quellen für Emissionsfaktoren benennen"]
[]
[]
[]
[null,"1. Baseline"]
[]
[null,null,"Energieträger",null,null,"Baseline_\nVerbrauch [n/a]",null,"Baseline_Verbrauch [kWh/a]",null,"Baseline_Emissionen\n[t CO2-Äq/a]"]
[null,null,5,"Dropdown klicken",null,0,null,{"$f":"F39*J28","v":0},null,{"$f":"H39*E28/1000","v":0}]
[null,null,null,null,"Hinweis: In Einheit aus der Energieträger-Liste eintragen, z.B. Wert für Erdgas in m3"]
[]
[]
[null,"2. Effizienzsteigerung"]
[null,null,null,null,null,"Verbrauch nach Optimierung",null,"Verbrauch nach Optimierung [kWh/a]",null,"Emissionen Optimierung \n[t CO2-Äq/a]"]
[null,null,null,null,null,0,null,{"$f":"F45*J28","v":0},null,{"$f":"H45*E28/1000","v":0}]
[null,null,null,null,"Hinweis: Findet keine Effizienzsteigerung statt, muss der Baseline_Verbrauch eingetragen werden",null,null,null,null,"Einsparung Emissionen \n[t CO2-Äq/a]",null,"Einsparung Anteilig von Baseline [%]"]
[null,null,null,null,null,null,null,null,null,{"$f":"J39-J45","v":0},null,{"$f":"IF($J$39>0,J47/$J$39,\"Baseline fehlt\")","v":"Baseline fehlt"}]
[]
[]
[null,"3. Treibstoffwechsel"]
[null,"Ist ein Treibstoffwechsel vorgesehen?",2,"ja",null,null,null,null,null,"Baseline_Emissionen \n[t CO2-Äq/a] (nur bei Treibstoffwechsel)"]
[null,null,null,"nein",null,null,null,null,null,{"$f":"IF(C51=1,J39,0)","v":0}]
[null,null,null,null,null,"Verbrauch nach Treibstoffwechsel [n/a]",null,"Verbrauch Treibstoffwechsel [kWh/a]",null,"Emissionen Optimierung \n[t CO2-Äq/a]"]
[null,null,"Dropdown bitte klicken",null,null,0,null,{"$f":"F54*J71","v":0},null,{"$f":"H54*E71/1000","v":0}]
[null,"Wechsel zu",2,null,null,null,null,null,null,"Einsparung Treibstoffwechsel \n[t CO2-Äq/a]",null,"Einsparung Anteilig von Baseline [%]"]
[null,null,null,null,null,null,null,null,null,{"$f":"J52-J54","v":0},null,{"$f":"IF($J$39>0,J56/$J$39,\"Baseline fehlt\")","v":"Baseline fehlt"}]
[]
[]
[null,null,"Energieträger",null,"Emissionen CO2-Äquivalent",null,null,"Energieträger",null,"Heizwert / \nUmrechnungsfaktor"]
[]
[null,1,"Diesel [l]",null,0.26600000000000001,"kg CO2-Äquivalent/kWh",1,"Diesel [l]",null,9.8000000000000007,"kWh/l"]
[null,2,"Benzin [l]",null,0.25900000000000001,"kg CO2-Äquivalent/kWh",2,"Benzin [l]",null,8.9,"kWh/l"]
[null,3,"Erdgas CNG [kg]",null,0.20200000000000001,"kg CO2-Äquivalent/kWh",3,"Erdgas CNG [kg]",null,12,"kWh/kg"]
[null,4,"Autogas LPG [l]",null,0.23400000000000001,"kg CO2-Äquivalent/kWh",4,"Autogas LPG [l]",null,12.8,"kWh/l"]
[null,5,"Strom [kWh]",null,{"$f":"E22","v":0.42499999999999999},"kg CO2-Äquivalent/kWh",5,"Strom [kWh]",null,1,"[ ]"]
[null,6,"Biodiesel [l]",null,0.255,"kg CO2-Äquivalent/kWh",6,"Biodiesel [l]",null,9.8000000000000007,"kWh/l"]
[null,7,"Wasserstoff",null,0,"kg CO2-Äquivalent/kWh",7,"Wasserstoff",null,0,"kWh/n"]
[null,8,"Eigener Wert [ ]",null,0,"kg CO2-Äquivalent/kWh",8,"Eigener Wert [ ]",null,0,"kWh/n"]
[]
[]
[null,null,"Gewählter Emissionsfaktor",null,{"$f":"VLOOKUP(C55,B61:E68,4,FALSE)","v":0.25900000000000001},"kg CO2-Äquivalent/kWh",null,"Gewählter Heizwert / Umrechnungsfaktor",null,{"$f":"VLOOKUP(C55,G61:J68,4,FALSE)","v":8.9},{"$f":"VLOOKUP(C55,G61:K68,5,FALSE)","v":"kWh/l"}]

{"sheet":"Prozessanwendungen","index":5,"n_rows":28,"n_cols":12,"rows_kept":28,"cut":false,"hidden":false,"merged":[[24,2,24,3],[1,1,1,12],[5,5,5,7],[7,5,7,7],[16,2,16,10],[17,2,18,10]]}
[]
[null,"Berechnungstool Treibhausgasminderung"]
[]
[null,null,"Eingesparte Treibhausgasemissionen im Bereich",null,null,{"$f":"MID(CELL(\"Dateiname\",$B$1),FIND(\"]\", CELL(\"Dateiname\",$B$1))+1,31)","v":"Prozessanwendungen"}]
[]
[null,null,"Name der Institution",null,null,{"$f":"Startseite!F29","v":"Bitte ausfüllen"}]
[]
[null,null,"Titel des Projektes",null,null,{"$f":"Startseite!F31","v":"Bitte ausfüllen"}]
[]
[]
[null,null,"Hinweise zur Bearbeitung der Tabellen"]
[]
[null,null,"In die weißen Felder bitte Werte eintragen",null,null,"In den hellblauen Feldern läuft eine Berechnung ab",null,null,"In den dunkelblauen Feldern werden Ihnen Ergebnisse angezeigt"]
[]
[]
[]
[null,null,"Maßnahmenbeschreibung"]
[null,null,"Bitte kurz die Maßnahme beschreiben und ggf. Quellen für Emissionsfaktoren benennen"]
[]
[]
[]
[null,"1. Prozessemissionen"]
[null,null,null,"Emissionsfaktor \nBaseline \n[t CO2 / t Produkt]",null,"Produktionsmenge [t]",null,"Baseline Emissionen \n[t CO2-Äq/a]"]
[null,null,16,{"$f":"VLOOKUP(C24,'Faktoren Prozessemissionen'!A3:C34,3,FALSE)","v":2.9100000000000001E-2},null,1,null,{"$f":"D24*F24","v":2.9100000000000001E-2}]
[null,null,"Hinweis: Emissionsfaktoren zur Nachvollziehbarkeit mit Einheit eintragen.\n\nDie Baseline Emissionen müssen von kg in t umgerechnet werden."]
[null,null,null,"Emissionsfaktor Optimierung\n[t CO2 / t Produkt]",null,"Produktionsmenge [t]",null,"Emissionen nach Optimierung\n[t CO2-Äq/a]",null,"Einsparung Emissionen\n[t CO2-Äq/a]",null,"Einsparung Anteilig von Baseline [%]"]
[null,null,null,0,null,{"$f":"F24","v":1},null,{"$f":"D27*F27","v":0},null,{"$f":"H24-H27","v":2.9100000000000001E-2},null,{"$f":"IF($H$24>0,J27/$H$24,\"Baseline fehlt\")","v":1}]
[null,null,null,"hier eigenen Wert eintragen"]

{"sheet":"Ergebnisse","index":6,"n_rows":50,"n_cols":9,"rows_kept":50,"cut":false,"hidden":false,"merged":[[1,1,1,12],[4,5,4,7],[6,5,6,7]]}
[]
[null,"Berechnungstool Treibhausgasminderung - Zusammenfassung"]
[]
[]
[null,null,"Name der Institution",null,null,{"$f":"Startseite!F29","v":"Bitte ausfüllen"}]
[]
[null,null,"Titel des Projektes",null,null,{"$f":"Startseite!F31","v":"Bitte ausfüllen"}]
[]
[]
[null,null,"Zusammenfassung der Ergebnisse",null,null,null,"Emissionsreduktionen"]
[null,null,null,null,null,null,null,null,"Anteil von Emissionsreduktion gesamt"]
[null,null,"Wärmeanwendungen",null,"1. Effizienzsteigerung",null,{"$f":"Wärmeanwendungen!J46","v":0},"[t CO2-Äquivalent/a]",{"$f":"IF($G$45>0,G12/$G$45,\"keine Emissionen\")","v":0}]
[]
[null,null,null,null,"2. Systemwechsel erneuerbare Energien",null,{"$f":"Wärmeanwendungen!J51","v":0},"[t CO2-Äquivalent/a]",{"$f":"IF($G$45>0,G14/$G$45,\"keine Emissionen\")","v":0}]
[]
[null,null,null,null,"3. Elektrische Wärmepumpe ",null,{"$f":"Wärmeanwendungen!J62","v":0},"[t CO2-Äquivalent/a]",{"$f":"IF($G$45>0,G16/$G$45,\"keine Emissionen\")","v":0}]
[]
[null,null,null,null,"4. Gasbetriebene Wärmepumpe",null,{"$f":"Wärmeanwendungen!J71","v":0},"[t CO2-Äquivalent/a]",{"$f":"IF($G$45>0,G18/$G$45,\"keine Emissionen\")","v":0}]
[]
[null,null,null,null,"5. Brennstoffwechsel",null,{"$f":"Wärmeanwendungen!J80","v":0},"[t CO2-Äquivalent/a]",{"$f":"IF($G$45>0,G20/$G$45,\"keine Emissionen\")","v":0}]
[]
[]
[null,null,"Stromanwendungen",null,"1. Effizienzsteigerungen",null,{"$f":"Stromanwendungen!J41","v":0},"[t CO2-Äquivalent/a]",{"$f":"IF($G$45>0,G23/$G$45,\"keine Emissionen\")","v":0}]
[]
[null,null,null,null,"2. Erneuerbare Energien"]
[]
[null,null,null,null,null,"2.1 EE-Verbrauch",{"$f":"Stromanwendungen!J46","v":0},"[t CO2-Äquivalent/a]",{"$f":"IF($G$45>0,G27/$G$45,\"keine Emissionen\")","v":0}]
[null,null,null,null,null,null,null,"oder"]
[null,null,null,null,null,"2.2 EE-Erzeugung",{"$f":"Stromanwendungen!J55","v":0},"[t CO2-Äquivalent/a]",{"$f":"IF($G$45>0,G29/$G$45,\"keine Emissionen\")","v":0}]
[]
[null,null,null,null,"3. Stromheizung",null,{"$f":"Stromanwendungen!J65","v":0},"[t CO2-Äquivalent/a]",{"$f":"IF($G$45>0,G31/$G$45,\"keine Emissionen\")","v":0}]
[]
[]
[null,null,"KWK",null,"1. KWK",null,{"$f":"KWK!G54","v":0},"[t CO2-Äquivalent/a]",{"$f":"IF($G$45>0,G34/$G$45,\"keine Emissionen\")","v":0}]
[]
[]
[null,null,"Kraftstoffanwendungen",null,"1. Effizienzsteigerung",null,{"$f":"Kraftstoffanwendungen!J47","v":0},"[t CO2-Äquivalent/a]",{"$f":"IF($G$45>0,G37/$G$45,\"keine Emissionen\")","v":0}]
[]
[null,null,null,null,"2. Treibstoffwechsel",null,{"$f":"Kraftstoffanwendungen!J56","v":0},"[t CO2-Äquivalent/a]",{"$f":"IF($G$45>0,G39/$G$45,\"keine Emissionen\")","v":0}]
[]
[]
[null,null,"Prozessanwendungen",null,"1. Prozessemissionen",null,{"$f":"Prozessanwendungen!J27","v":2.9100000000000001E-2},"[t CO2-Äquivalent/a]",{"$f":"IF($G$45>0,G42/$G$45,\"keine Emissionen\")","v":1}]
[]
[]
[null,null,null,null,"Emissionsreduktion gesamt:",null,{"$f":"G12+G14+G16+G18+G20+G23+G27+G29+G31+G34+G37+G39+G42","v":2.9100000000000001E-2},"[t CO2-Äquivalent/a]",{"$f":"IF($G$45>0,G45/$G$45,\"keine Emissionen\")","v":1}]
[]
[]
[]
[]
[null,null,"Für den Fall, dass ein Arbeitsblatt mehrmals ausgefüllt wurde und / oder es sich um ein mehrjähriges Projekt handelt, bitte hier vermerken:"]

{"sheet":"Support","index":7,"n_rows":12,"n_cols":2,"rows_kept":12,"cut":false,"hidden":false,"merged":[[8,1,8,6],[10,1,10,6],[11,1,11,6]]}
[]
[]
[]
[]
[]
[]
[]
[]
[null,"Bei Rückfragen zu diesem Tool wenden Sie sich bitte an:"]
[]
[null,"Christian Borm"]
[null,"christian.borm@energy4climate.nrw"]

{"sheet":"Erläuterungen KWK","index":8,"n_rows":1,"n_cols":1,"rows_kept":1,"cut":false,"hidden":false,"merged":[[0,0,1,20]]}
["Berechnung der Einsparung von CO2-Emissionen durch KWK"]

{"sheet":"Faktoren erneuerbare Energie","index":9,"n_rows":15,"n_cols":3,"rows_kept":15,"cut":false,"hidden":false,"merged":[[0,1,1,2]]}
[null,"Faktoren Erneuerbare Energie nach GEMIS 5.0"]
[]
[null,"Option","CO2-Äquivalent [kg/kWh]"]
[1,"Wasser-Kraftwerk > 10 MW",3.0000000000000001E-3]
[2,"Wind Park onshore",0.01]
[3,"Wind Park offshore",5.0000000000000001E-3]
[4,"Solar-PV (polykristallin)",0.04]
[5,"Geothermie (ORC)",8.8999999999999996E-2]
[6,"Deponiegas-GM",3.0000000000000001E-3]
[7,"Klärgas-BHKW",3.0000000000000001E-3]
[8,"Biogas-Gülle-BHKW",0.05]
[9,"Biogas-Mais-BHKW",0.18]
[10,"Rapsöl-BHKW",0.28299999999999997]
[11,"(Alt)Holz-Kraftwerk",1.7999999999999999E-2]
[12,"Eigener Wert"]

{"sheet":"Faktoren Prozessemissionen","index":10,"n_rows":34,"n_cols":4,"rows_kept":34,"cut":false,"hidden":false,"merged":[[0,0,0,4]]}
["Faktoren Prozessemissionen [t CO2/t Produkt]"]
[null,"Prozess","Emissionsfaktor \n[t CO2/t Produkt]","Quelle"]
[1,"Elektrodenabbrand",7.4000000000000003E-3,"Nationaler Inventarbericht zum Deutschen Treibhausgasinventar 1990 - 2018, Seite 343"]
[2,"Katalysatorabbrand",6.2420000000000003E-2,"CO2-Emissionsfaktoren für die deutsche Berichterstattung atmosphärischer Emissionen, Umweltbundesamt 2012, Dokument als Datei verfügbar."]
[3,"Produktion von Ammoniak",1.6539999999999999,"Nationaler Inventarbericht zum Deutschen Treibhausgasinventar 1990 - 2018, Seite 878"]
[4,"Produktion von Behälterglas",0.193,"Nationaler Inventarbericht zum Deutschen Treibhausgasinventar 1990 - 2018, Seite 878"]
[5,"Produktion von Branntkalk (bezogen auf CaO)",0.746,"Nationaler Inventarbericht zum Deutschen Treibhausgasinventar 1990 - 2018, Seite 878"]
[6,"Produktion von Dachziegeln",2.86E-2,"CO2-Emissionsfaktoren für die deutsche Berichterstattung atmosphärischer Emissionen, Umweltbundesamt 2012, Dokument als Datei verfügbar."]
[7,"Produktion von Dolomitkalk (bezogen auf 50% CaO und 50% MgO)",0.876,"Nationaler Inventarbericht zum Deutschen Treibhausgasinventar 1990 - 2018, Seite 878"]
[8,"Produktion von Elektrostahl",7.3699999999999998E-3,"Nationaler Inventarbericht zum Deutschen Treibhausgasinventar 1990 - 2018, Seite 878"]
[9,"Produktion von Ferrolegierungen",0.11,"Nationaler Inventarbericht zum Deutschen Treibhausgasinventar 1990 - 2018, Seite 878"]
[10,"Produktion von Flachglas",0.20799999999999999,"Nationaler Inventarbericht zum Deutschen Treibhausgasinventar 1990 - 2018, Seite 878"]
[11,"Produktion von Gips aus REA-Anlagen (bezogen auf CaCO3-Einsatz) CaSO4·2 H2O",0.25600000000000001,"CO2-Faktor, DEHST 2012, Dokument verfügbar unter: http://www.dehst.de/SharedDocs/Downloads/DE/Gesetze-Verordnungen/ZuV_2012.html"]
[12,"Produktion von Glas (D-Mix inkl. Scherbeneinsatz)",0.1196,"Nationaler Inventarbericht zum Deutschen Treibhausgasinventar 1990 - 2018, Seite 878"]
[13,"Produktion von Glasfasern (Mix)",0.19800000000000001,"Nationaler Inventarbericht zum Deutschen Treibhausgasinventar 1990 - 2018, Seite 878"]
[14,"Produktion von Hüttenaluminium",1.367,"Nationaler Inventarbericht zum Deutschen Treibhausgasinventar 1990 - 2018, Seite 878"]
[15,"Produktion von Magnesiumoxid (aus MgCO3 bezogen auf MgO)",1.0920000000000001,"CO2-Faktor, DEHST 2012, Dokument verfügbar unter: http://www.dehst.de/SharedDocs/Downloads/DE/Gesetze-Verordnungen/ZuV_2012.html"]
[16,"Produktion von Mauerziegeln",2.9100000000000001E-2,"CO2-Emissionsfaktoren für die deutsche Berichterstattung atmosphärischer Emissionen, Umweltbundesamt 2012, Dokument als Datei verfügbar."]
[17,"Produktion von Methanol",0.67,"CO2-Emissionsfaktoren für die deutsche Berichterstattung atmosphärischer Emissionen, Umweltbundesamt 2012, Dokument als Datei verfügbar."]
[18,"Produktion von Oxygenstahl, Kalksteineinsatz",0.44,"Nationaler Inventarbericht zum Deutschen Treibhausgasinventar 1990 - 2018, Seite 878"]
[19,"Produktion von Ruß",1.9599999999999999E-3,"Nationaler Inventarbericht zum Deutschen Treibhausgasinventar 1990 - 2018, Seite 878"]
[20,"Produktion von Spezialglas (Mix)",0.113,"Nationaler Inventarbericht zum Deutschen Treibhausgasinventar 1990 - 2018, Seite 878"]
[21,"Produktion von Steinwolle (Mix)",0.29899999999999999,"Nationaler Inventarbericht zum Deutschen Treibhausgasinventar 1990 - 2018, Seite 878"]
[22,"Produktion von Wirtschaftsglas",0.12,"Nationaler Inventarbericht zum Deutschen Treibhausgasinventar 1990 - 2018, Seite 878"]
[23,"Produktion von Zementklinker",0.53,"Nationaler Inventarbericht zum Deutschen Treibhausgasinventar 1990 - 2018, Seite 878"]
[24,"TC, TIC, TOC im Materialstrom",3.6640000000000001,"CO2-Faktor, DEHST 2012, Dokument verfügbar unter: http://www.dehst.de/SharedDocs/Downloads/DE/Gesetze-Verordnungen/ZuV_2012.html"]
[25,"Verwendung von BaCO3",0.223,"CO2-Faktor, DEHST 2012, Dokument verfügbar unter: http://www.dehst.de/SharedDocs/Downloads/DE/Gesetze-Verordnungen/ZuV_2012.html"]
[26,"Verwendung von Dolomit",0.86699999999999999,"Nationaler Inventarbericht zum Deutschen Treibhausgasinventar 1990 - 2018, Seite 300"]
[27,"Verwendung von K2CO3",0.318,"CO2-Faktor, DEHST 2012, Dokument verfügbar unter: http://www.dehst.de/SharedDocs/Downloads/DE/Gesetze-Verordnungen/ZuV_2012.html"]
[28,"Verwendung von LiCO3",0.59599999999999997,"CO2-Faktor, DEHST 2012, Dokument verfügbar unter: http://www.dehst.de/SharedDocs/Downloads/DE/Gesetze-Verordnungen/ZuV_2012.html"]
[29,"Verwendung von MgCO3",0.52200000000000002,"CO2-Faktor, DEHST 2012, Dokument verfügbar unter: http://www.dehst.de/SharedDocs/Downloads/DE/Gesetze-Verordnungen/ZuV_2012.html"]
[30,"Verwendung von Na2CO3",0.41499999999999998,"CO2-Faktor, DEHST 2012, Dokument verfügbar unter: http://www.dehst.de/SharedDocs/Downloads/DE/Gesetze-Verordnungen/ZuV_2012.html"]
[31,"Verwendung von NaHCO3",0.52400000000000002,"CO2-Faktor, DEHST 2012, Dokument verfügbar unter: http://www.dehst.de/SharedDocs/Downloads/DE/Gesetze-Verordnungen/ZuV_2012.html"]
[32,"Verwendung von SrCO3",0.29799999999999999,"CO2-Faktor, DEHST 2012, Dokument verfügbar unter: http://www.dehst.de/SharedDocs/Downloads/DE/Gesetze-Verordnungen/ZuV_2012.html"]

{"sheet":"Faktoren Kraftstoffanwendung","index":11,"n_rows":9,"n_cols":10,"rows_kept":9,"cut":false,"hidden":false,"merged":[[8,2,8,9],[0,1,0,9]]}
[null,"Faktoren Kraftstoffanwendung"]
[]
[null,null,"Benzin","Diesel","Kerosin","Ethanol","Biodiesel","Pflanzenöl","Erdgas","Flüssiggas"]
[null,"CO2  [kg/TJ]",72000,74000,73600,72000,70800,70800,56000,65000]
[null,"CO2 [kg/kg]",3.1349999999999998,3.1789999999999998,3.15,1.919,2.637,2.637,2.6040000000000001,2.988]
[null,"CO2 [kg/l]",2.3260000000000001,2.645,2.52,1.516,2.3180000000000001,2.4260000000000002,1.8640000000000001,1.7929999999999999]
[]
[null,null,"Anmerkung: CO2-Werte Ethanol wie Benzin, Pflanzenöl wie Biodiesel"]
[null,null,"Quelle: Fortschreibung und Erweiterung\n”Daten- und Rechenmodell: Energieverbrauch und Schadstoffemissionen des motorisierten Verkehrs in Deutschland 1960-2030 (TREMOD, Version 5)\nEndbericht Im Auftrag des Umweltbundesamtes, FKZ 3707 45 101, Tabelle 2, Seite 12,"]